bitfinex-derivatives/quotes_SOLF0:USTF0_20251107
["timestamp","ask_amount","ask_price","bid_price","bid_amount"]
[1762550520233,2.92,163.66,163.63,8.68347793]
[1762550520434,4.65698412,163.65,163.63,8.68347793]
[1762550520630,2.92,163.66,163.63,8.68347793]
[1762550520829,4.65698412,163.65,163.63,8.68347793]
[1762550521030,2.92,163.66,163.63,8.68347793]
[1762550521236,4.65698412,163.65,163.63,8.68347793]
[1762550521439,2.92,163.66,163.63,8.68347793]
[1762550521737,4.6566153,163.65,163.63,8.68347793]
[1762550521938,2.92,163.66,163.63,8.68347793]
[1762550522135,4.6566153,163.65,163.63,8.68347793]
[1762550522335,2.91,163.69,163.65,3.16]
[1762550522637,11.95239721,163.68,163.65,3.16]
[1762550522832,9.04221012,163.67,163.65,3.20532236]
[1762550523030,2.91,163.68,163.66,3.16]
[1762550523427,4.65479769,163.67,163.65,8.70712236]
[1762550523643,2.91,163.68,163.65,3.20532236]
[1762550523837,11.95040456,163.67,163.65,3.20532236]
[1762550524133,4.6550172,163.66,163.65,3.20532236]
[1762550524336,2.91,163.69,163.65,3.20532236]
[1762550524545,11.94946116,163.68,163.65,3.20532236]
[1762550524737,9.03946116,163.67,163.65,8.70702236]
[1762550524932,2.91,163.68,163.65,8.70702236]
[1762550525738,8.4104,163.7,163.66,3.16]
[1762550525938,11.94702817,163.69,163.66,3.16]
[1762550526140,9.03672487,163.68,163.66,3.16]
[1762550526338,2.91,163.69,163.66,3.16]
[1762550526544,7.56252288,163.68,163.66,3.16]
[1762550526839,2.91,163.68,163.66,3.16]
[1762550527038,7.56265339,163.67,163.65,3.20532236]
[1762550527238,2.91,163.67,163.65,3.20532236]
[1762550528041,2.91,163.7,163.65,3.20532236]
[1762550528238,2.91,163.68,163.65,3.20532236]
[1762550529147,2.91,163.68,163.65,8.70722236]
[1762550530242,2.91,163.68,163.65,3.20532236]
[1762550530441,2.91,163.68,163.65,0.04532236]
[1762550530641,5.70967124,163.71,163.65,0.04532236]
[1762550530642,2.91,163.66,163.65,0.04532236]
[1762550531145,7.56334956,163.66,163.65,0.04532236]
[1762550531640,2.91,163.69,163.65,3.20532236]
[1762550531848,11.94664789,163.68,163.65,3.20054391]
[1762550532148,9.03834798,163.67,163.65,3.20054391]
[1762550532447,2.91,163.68,163.65,3.20054391]
[1762550532747,9.03985535,163.67,163.65,3.20054391]
[1762550532947,2.91,163.68,163.65,3.20054391]
[1762550533138,9.02950863,163.67,163.65,3.20054391]
[1762550533339,2.91,163.68,163.65,3.20054391]
[1762550533539,11.94263825,163.67,163.65,3.20054391]
[1762550533744,2.91,163.67,163.65,3.20054391]
[1762550534148,4.64828511,163.66,163.65,3.20054391]
[1762550535558,14.12007124,163.7,163.65,3.20054391]
[1762550535559,2.91,163.69,163.65,3.20054391]
[1762550535852,11.87261403,163.68,163.65,3.20054391]
[1762550536046,4.64964485,163.67,163.65,3.20054391]
[1762550536247,4.65145503,163.66,163.65,3.20054391]
[1762550537144,8.96808438,163.66,163.65,0.04054391]
[1762550537448,8.96808438,163.66,163.65,3.20054391]
[1762550537648,4.65145503,163.66,163.65,3.20054391]
[1762550538847,8.96903747,163.66,163.65,0.04054391]
[1762550539163,4.65145503,163.66,163.65,0.04054391]
[1762550539458,8.96975767,163.66,163.65,0.04054391]
[1762550540950,8.96975767,163.66,163.65,3.20054391]
[1762550541258,2.91,163.69,163.66,3.16]
[1762550541462,11.8843019,163.68,163.65,8.70234391]
[1762550541657,8.9743019,163.67,163.65,8.70234391]
[1762550541858,4.65576462,163.66,163.65,8.70234391]
[1762550543768,2.91,163.69,163.67,3.16]
[1762550543964,8.97553648,163.68,163.67,3.16]
[1762550544867,11.88553648,163.68,163.66,5.5015]
[1762550545069,8.97553648,163.67,163.66,5.5015]
[1762550546267,8.97553648,163.67,163.66,8.6615]
[1762550550067,8.97553648,163.67,163.66,3.16]
[1762550550457,8.97553648,163.67,163.65,0.04054391]
[1762550550660,5.7100605,163.69,163.65,3.20054391]
[1762550550661,8.97553648,163.66,163.65,3.20054391]
[1762550551967,11.88553648,163.66,163.65,0.04054391]
[1762550553372,4.6562927,163.66,163.65,2.98054391]
[1762550554274,5.7100605,163.7,163.65,2.98054391]
[1762550554570,4.32191775,163.69,163.65,2.98054391]
[1762550554771,5.7100605,163.71,163.65,2.98054391]
[1762550554772,8.6200605,163.71,163.67,2.94]
[1762550555068,4.32179088,163.7,163.68,2.94]
[1762550555277,8.6200605,163.74,163.68,2.94]
[1762550555576,4.32047209,163.73,163.68,2.94]
[1762550555774,4.32047209,163.72,163.68,2.94]
[1762550556069,4.32047209,163.71,163.7,2.94]
[1762550558672,4.31755459,163.71,163.7,2.94]
[1762550559467,2.91,163.74,163.7,2.94]
[1762550559664,7.22679961,163.73,163.7,2.94]
[1762550559872,4.31679961,163.72,163.71,2.94]
[1762550560877,4.31679961,163.72,163.7,8.4402]
[1762550561077,2.91,163.72,163.7,8.4402]
[1762550562681,2.91,163.74,163.71,8.5998]
[1762550562976,4.31480559,163.73,163.71,8.5998]
[1762550563171,4.31480559,163.72,163.71,8.5998]
[1762550564575,4.31480559,163.72,163.71,5.4998]
[1762550564776,7.22480559,163.72,163.69,8.64676972]
[1762550564981,2.91,163.72,163.7,3.1]
[1762550566083,2.91,163.72,163.7,8.6002]
[1762550566283,4.63296297,163.71,163.7,8.6002]
[1762550566876,5.7100605,163.76,163.74,3.1]
[1762550567077,3.36009402,163.84,163.73,0.03913599]
[1762550567078,7.2456109,163.75,163.73,0.03913599]
[1762550567374,4.3356109,163.74,163.72,3.14226707]
[1762550567574,2.91,163.75,163.72,3.14226707]
[1762550567785,4.33456631,163.74,163.72,3.14226707]
[1762550567981,2.91,163.75,163.72,3.14226707]
[1762550568174,7.24462285,163.74,163.72,3.14226707]
[1762550568377,2.91,163.76,163.72,3.14226707]
[1762550568578,7.24379064,163.75,163.72,3.14226707]
[1762550568780,4.33379064,163.74,163.72,3.14226707]
[1762550569084,2.91,163.75,163.72,3.14226707]
[1762550569284,4.33379064,163.74,163.72,3.14226707]
[1762550569486,2.91,163.75,163.72,3.14226707]
[1762550569686,4.33321732,163.74,163.72,3.14226707]
[1762550569885,2.91,163.76,163.72,3.14226707]
[1762550570185,4.33321732,163.75,163.72,3.14226707]
[1762550570373,2.91,163.76,163.72,3.14226707]
[1762550570579,2.91,163.76,163.73,8.5992]
[1762550570780,2.91,163.76,163.74,3.1]
[1762550571987,4.3304722,163.75,163.74,5.4989]
[1762550572380,7.2404722,163.75,163.72,3.14226707]
[1762550572683,2.91,163.75,163.72,3.14226707]
[1762550574091,2.91,163.75,163.73,3.1]
[1762550574884,2.91,163.75,163.72,0.04226707]
[1762550575077,4.32943952,163.74,163.72,0.04226707]
[1762550575282,2.91,163.73,163.72,0.04226707]
[1762550577391,2.91,163.75,163.72,0.04226707]
[1762550577685,7.2391876,163.74,163.72,0.04226707]
[1762550577891,2.91,163.74,163.72,0.04226707]
[1762550578188,2.91,163.77,163.72,3.14226707]
[1762550578385,2.91,163.75,163.72,3.14226707]
[1762550578985,7.4979914,163.74,163.72,3.14226707]
[1762550579188,2.91,163.74,163.72,3.14226707]
[1762550579993,2.91,163.74,163.72,8.64186707]
[1762550581592,2.91,163.74,163.72,3.14226707]
[1762550581795,2.91,163.74,163.72,0.04226707]
[1762550582095,11.82824451,163.73,163.69,6.09372057]
[1762550582292,2.89,163.71,163.66,3.1]
[1762550582590,2.89,163.69,163.65,171.90090282]
[1762550583194,2.93361547,163.69,163.66,3.07]
[1762550583890,0.04361547,163.69,163.67,3.07]
[1762550584088,0.04361547,163.69,163.68,3.07]
[1762550584993,8.3885,163.76,163.68,3.07]
[1762550585196,8.92063604,163.75,163.69,3.07]
[1762550585493,8.92063604,163.74,163.72,3.07]
[1762550585689,2.89,163.75,163.72,3.07]
[1762550585889,8.92142212,163.74,163.72,3.07]
[1762550586090,2.89,163.75,163.72,5.4995]
[1762550586297,8.92114591,163.74,163.72,8.5695]
[1762550586596,2.89,163.75,163.72,8.5695]
[1762550586791,8.92121106,163.74,163.72,8.5695]
[1762550586997,2.89,163.75,163.72,8.5695]
[1762550587292,8.92121106,163.74,163.72,8.5695]
[1762550587494,2.89,163.75,163.72,8.5695]
[1762550587697,8.92180473,163.74,163.72,8.5695]
[1762550587994,2.89,163.75,163.72,8.5695]
[1762550588194,8.92180473,163.74,163.72,8.5695]
[1762550588394,11.81273635,163.73,163.71,0.04369481]
[1762550588587,2.89,163.73,163.71,0.04369481]
[1762550589095,5.4983,163.76,163.71,3.11369481]
[1762550589291,2.89,163.74,163.72,3.07]
[1762550589486,2.89,163.74,163.71,0.04369481]
[1762550589692,7.48132958,163.73,163.71,0.04369481]
[1762550589885,11.81479722,163.72,163.71,0.04369481]
[1762550590291,2.89,163.69,163.68,4.28]
[1762550590494,11.81712959,163.69,163.68,4.28]
[1762550591593,8.92712959,163.69,163.68,7.35]
[1762550591797,4.5932532,163.69,163.68,7.35]
[1762550593185,8.9285484,163.69,163.68,7.35]
[1762550593588,8.9285484,163.69,163.68,4.28]
[1762550594186,4.5932532,163.69,163.68,4.28]
[1762550594699,8.91082865,163.69,163.68,4.28]
[1762550595497,4.5932532,163.69,163.68,4.28]
[1762550596398,7.4832532,163.69,163.68,4.28]
[1762550596592,11.80245759,163.69,163.68,4.28]
[1762550598195,8.91245759,163.69,163.68,4.28]
[1762550599603,11.80245759,163.69,163.68,4.28]
[1762550613005,17.51251809,163.69,163.68,4.28]
[1762550614802,5.5016,163.66,163.62,5.81]
[1762550615108,2.92,163.64,163.62,8.85]
[1762550615410,4.5932532,163.63,163.62,8.85]
[1762550615605,4.5932532,163.63,163.62,3.04]
[1762550615805,7.5132532,163.63,163.6,3.04]
[1762550616002,2.92,163.62,163.61,0.04337521]
[1762550616213,7.54930546,163.62,163.61,0.04337521]
[1762550617502,11.86202956,163.62,163.61,0.04337521]
[1762550617703,2.92,163.61,163.54,3.04]
[1762550618013,2.92,163.59,163.54,3.04]
[1762550618403,2.92,163.58,163.54,3.04]
[1762550618607,2.96654469,163.58,163.54,3.08535657]
[1762550619200,2.96654469,163.58,163.54,0.04535657]
[1762550620113,2.96654469,163.58,163.54,3.08535657]
[1762550623211,2.91,163.57,163.54,0.04535657]
[1762550628013,2.91,163.55,163.54,0.04535657]
[1762550628620,2.95654469,163.58,163.54,0.04535657]
[1762550629121,2.91,163.56,163.54,0.04535657]
[1762550630220,2.95654469,163.58,163.54,3.10535657]
[1762550630622,2.95654469,163.58,163.55,3.06]
[1762550631221,2.95654469,163.58,163.54,3.10535657]
[1762550632418,2.91,163.56,163.54,0.04535657]
[1762550633024,8.415,163.56,163.54,0.04535657]
[1762550633225,2.91,163.55,163.54,0.04535657]
[1762550638138,2.91,163.57,163.54,0.04535657]
[1762550638336,2.95654469,163.58,163.54,3.10535657]
[1762550638831,0.04654469,163.58,163.54,3.10535657]
[1762550639338,0.04654469,163.58,163.55,3.06]
[1762550639540,0.04654469,163.58,163.56,3.06]
[1762550641340,2.95654469,163.58,163.55,3.06]
[1762550642535,2.95654469,163.58,163.54,0.04535657]
[1762550642736,2.95654469,163.58,163.54,3.07535657]
[1762550643043,2.95654469,163.58,163.54,0.04535657]
[1762550643344,2.91,163.56,163.54,0.04535657]
[1762550645642,2.91,163.56,163.52,4.98]
[1762550645643,2.91,163.54,163.52,4.98]
[1762550645847,9.04804757,163.55,163.52,4.98]
[1762550645848,11.95902955,163.53,163.52,4.98]
[1762550646143,2.91,163.52,163.5,4.92]
[1762550646344,7.55875,163.51,163.5,4.92]
[1762550646544,7.55875,163.51,163.39,279.81517887]
[1762550646545,2.91,163.5,163.41,3.03]
[1762550646739,2.91,163.46,163.44,0.04137756]
[1762550647948,0.04406208,163.47,163.44,3.07137756]
[1762550648540,0.04406208,163.47,163.45,3.03]
[1762550650554,0.04406208,163.47,163.45,8.5385]
[1762550650853,0.04406208,163.47,163.46,3.03]
[1762550651950,0.04406208,163.47,163.46,4.25]
[1762550652255,2.91,163.53,163.46,4.25]
[1762550652256,2.91,163.53,163.49,3.03]
[1762550652749,2.91,163.53,163.49,8.5372]
[1762550652948,2.91,163.53,163.5,3.03]
[1762550653148,2.95443928,163.53,163.5,3.06943432]
[1762550653455,0.04443928,163.53,163.5,8.57633432]
[1762550653644,2.95443928,163.53,163.5,8.57633432]
[1762550654449,0.04443928,163.53,163.51,3.03]
[1762550657449,4.71488256,163.52,163.51,3.03]
[1762550657649,0.04443928,163.53,163.51,3.03]
[1762550658049,2.95443928,163.53,163.5,3.06943432]
[1762550658253,12.0351365,163.52,163.5,0.03943432]
[1762550658553,12.0351365,163.51,163.5,0.03943432]
[1762550658852,9.1251365,163.51,163.5,0.03943432]
[1762550662459,12.0351365,163.51,163.5,0.03943432]
[1762550662656,12.0351365,163.51,163.44,3.03]
[1762550662855,9.1251365,163.5,163.44,3.03]
[1762550663056,9.1251365,163.49,163.46,3.03]
[1762550663257,4.71506642,163.48,163.46,3.03]
[1762550663457,4.71506642,163.47,163.46,3.03]
[1762550665062,0.04045103,163.48,163.46,8.5381]
[1762550665457,0.04045103,163.48,163.46,3.03]
[1762550665658,4.72694756,163.47,163.45,3.07045195]
[1762550665859,0.04045103,163.48,163.45,3.07045195]
[1762550666064,4.72710519,163.47,163.45,3.07045195]
[1762550666266,0.04045103,163.48,163.45,3.07045195]
[1762550666468,4.72695452,163.47,163.45,3.07045195]
[1762550666762,0.04045103,163.48,163.47,3.03]
[1762550666966,4.76722448,163.48,163.47,3.03]
[1762550667466,0.04045103,163.48,163.47,3.03]
[1762550668369,0.04045103,163.48,163.46,5.5082]
[1762550669063,0.04045103,163.48,163.47,3.03]
[1762550669461,0.04045103,163.48,163.46,3.03]
[1762550669662,2.95045103,163.48,163.45,0.04045195]
[1762550669968,4.72712136,163.47,163.45,0.04045195]
[1762550670162,2.95045103,163.48,163.45,0.04045195]
[1762550670362,7.63677294,163.47,163.45,0.04045195]
[1762550670565,2.91,163.47,163.45,0.04045195]
[1762550670967,7.6371957,163.46,163.45,0.04045195]
[1762550671870,12.05618236,163.46,163.45,0.04045195]
[1762550674373,2.88,163.44,163.4,4.28]
[1762550674579,2.88,163.42,163.4,4.28]
[1762550675173,7.60460381,163.41,163.4,4.28]
[1762550675368,5.66800593,163.47,163.41,2.95]
[1762550675570,2.88,163.51,163.41,2.95]
[1762550675767,9.13257988,163.5,163.41,2.95]
[1762550675968,4.7199574,163.49,163.46,2.95]
[1762550676169,2.88,163.51,163.46,2.95]
[1762550676462,9.17562424,163.5,163.47,5.54715319]
[1762550676662,0.04109906,163.5,163.47,8.49715319]
[1762550676874,0.04109906,163.5,163.48,2.95]
[1762550678078,0.04109906,163.5,163.49,2.95]
[1762550678479,0.04109906,163.5,163.47,0.03925319]
[1762550678779,0.04109906,163.5,163.48,8.4575]
[1762550679476,2.92109906,163.5,163.47,0.03925319]
[1762550681179,0.04109906,163.5,163.47,3.16925319]
[1762550682581,2.91109906,163.5,163.47,3.16925319]
[1762550683381,0.04109906,163.5,163.48,3.13]
[1762550685381,0.04109906,163.5,163.48,8.6375]
[1762550685574,0.04109906,163.5,163.49,3.13]
[1762550686274,0.04109906,163.5,163.48,5.5075]
[1762550686275,5.66800593,163.56,163.52,3.13]
[1762550686474,9.1770971,163.55,163.52,3.13]
[1762550686777,4.7571124,163.54,163.52,3.13]
[1762550687075,5.66800593,163.58,163.52,3.13]
[1762550687277,9.22269366,163.57,163.53,3.17150844]
[1762550687476,9.17685683,163.56,163.53,3.17150844]
[1762550687672,4.75798606,163.55,163.53,3.17150844]
[1762550687983,9.17864675,163.54,163.53,0.04150844]
[1762550689682,4.75880272,163.54,163.53,0.04150844]
[1762550690578,9.17874486,163.54,163.53,0.04150844]
[1762550690776,12.04874486,163.54,163.53,0.04150844]
[1762550691178,17.71675079,163.54,163.53,0.04150844]
[1762550691380,12.04874486,163.54,163.53,0.04150844]
[1762550691782,17.71675079,163.54,163.53,0.04150844]
[1762550692380,12.04874486,163.54,163.53,0.04150844]
[1762550692985,17.75331824,163.54,163.53,0.04150844]
[1762550693477,12.04874486,163.54,163.53,0.04150844]
[1762550694187,17.75352858,163.54,163.53,0.04150844]
[1762550695187,12.04874486,163.54,163.53,0.04150844]
[1762550695377,17.75359879,163.54,163.53,0.04150844]
[1762550695983,17.75353487,163.54,163.53,0.04150844]
[1762550701286,17.75338993,163.54,163.53,0.04150844]
[1762550701487,12.04874486,163.54,163.53,0.04150844]
[1762550702882,7.62880272,163.54,163.53,0.04150844]
[1762550703090,12.05076213,163.54,163.53,0.04150844]
[1762550703285,2.87,163.53,163.49,6.18]
[1762550703478,2.87,163.51,163.49,6.18]
[1762550703789,12.05076213,163.5,163.49,6.18]
[1762550705085,9.18076213,163.5,163.49,6.18]
[1762550705786,12.05076213,163.5,163.49,6.18]
[1762550706378,12.05303863,163.5,163.49,6.18]
[1762550707492,12.05303863,163.5,163.49,6.13915096]
[1762550708703,19.66325515,163.5,163.49,6.13915096]
[1762550708890,9.18303863,163.5,163.48,0.0456475]
[1762550709191,25.66665767,163.49,163.48,0.0456475]
[1762550709397,20.15935767,163.49,163.46,6.75]
[1762550709588,16.79145555,163.48,163.46,6.75]
[1762550709895,9.18303863,163.47,163.4,3.14]
[1762550710095,5.70712973,163.44,163.4,3.14]
[1762550710394,9.18303863,163.43,163.4,3.14]
[1762550710696,9.18303863,163.42,163.4,3.17967516]
[1762550710994,7.6095063,163.47,163.4,3.17967516]
[1762550710995,5.70712973,163.5,163.41,3.14]
[1762550711190,10.43545574,163.49,163.41,3.14]
[1762550711393,9.14807738,163.48,163.42,3.14]
[1762550711595,4.72832601,163.47,163.46,3.14]
[1762550711994,4.72832601,163.47,163.41,6.62]
[1762550711995,4.72832601,163.47,163.45,0.04541937]
[1762550712197,0.04121748,163.48,163.45,0.04541937]
[1762550712198,9.14757842,163.46,163.45,0.04541937]
[1762550713896,9.14757842,163.46,163.45,3.18541937]
[1762550714090,0.04121748,163.48,163.45,3.18541937]
[1762550714289,0.04121748,163.48,163.46,5.5082]
[1762550714502,0.04121748,163.48,163.47,3.14]
[1762550714704,4.50510415,163.48,163.45,3.18541937]
[1762550714905,0.04121748,163.48,163.46,3.14]
[1762550715399,4.46341198,163.47,163.46,3.14]
[1762550715800,4.46341198,163.47,163.45,0.04541937]
[1762550716106,0.04121748,163.48,163.45,0.04541937]
[1762550716405,4.46447188,163.47,163.45,3.18541937]
[1762550716705,0.04121748,163.48,163.45,3.18541937]
[1762550717007,4.46695942,163.47,163.45,3.18541937]
[1762550717198,0.04121748,163.48,163.45,3.18541937]
[1762550717399,9.02663537,163.47,163.45,3.18541937]
[1762550717706,4.46608274,163.46,163.45,0.04541937]
[1762550718394,4.46608274,163.46,163.45,3.18541937]
[1762550718701,9.02662233,163.46,163.45,3.18541937]
[1762550719399,9.02662233,163.46,163.45,0.04541937]
[1762550726900,4.46608274,163.46,163.45,3.18541937]
[1762550727111,0.04121748,163.48,163.45,3.18541937]
[1762550727301,4.46616626,163.47,163.45,0.04541937]
[1762550727500,0.04121748,163.48,163.45,0.04541937]
[1762550727701,4.46606798,163.47,163.45,0.04541937]
[1762550727895,0.04121748,163.48,163.45,0.04541937]
[1762550728106,9.02553996,163.47,163.45,0.04541937]
[1762550728409,0.04121748,163.48,163.45,0.04541937]
[1762550728604,9.02425157,163.47,163.45,0.04541937]
[1762550728805,0.04121748,163.48,163.45,0.04541937]
[1762550729007,4.46515132,163.47,163.45,5.55401937]
[1762550729203,0.04121748,163.48,163.45,5.55401937]
[1762550729404,4.46492672,163.47,163.45,5.55401937]
[1762550729712,0.04121748,163.48,163.45,5.55401937]
[1762550730010,4.46495407,163.47,163.45,5.55401937]
[1762550730213,0.04121748,163.48,163.45,5.55401937]
[1762550730410,4.46521041,163.47,163.46,5.5083]
[1762550730912,4.46521041,163.47,163.46,8.6483]
[1762550731105,4.46521041,163.47,163.45,0.04541937]
[1762550731410,0.04121748,163.48,163.45,0.04541937]
[1762550731713,4.46702499,163.47,163.45,0.04541937]
[1762550731907,0.04121748,163.48,163.45,0.04541937]
[1762550732109,9.02912725,163.47,163.45,0.04541937]
[1762550732408,0.04121748,163.48,163.45,3.19541937]
[1762550732712,4.46867672,163.47,163.45,3.19541937]
[1762550732908,0.04121748,163.48,163.45,3.19541937]
[1762550733107,9.03387094,163.47,163.45,3.19541937]
[1762550733305,4.46921633,163.46,163.45,8.70411937]
[1762550733506,0.04121748,163.48,163.45,3.19541937]
[1762550733712,9.03687382,163.47,163.45,3.19541937]
[1762550733903,4.47086228,163.46,163.45,8.70411937]
[1762550734100,4.47086228,163.46,163.45,5.55411937]
[1762550734712,4.47086228,163.46,163.45,8.70411937]
[1762550735504,9.0401496,163.46,163.45,8.70411937]
[1762550735707,4.47086228,163.46,163.45,8.70411937]
[1762550735908,0.04121748,163.48,163.47,5.508]
[1762550736104,11.41532478,163.55,163.47,5.508]
[1762550736105,5.69267603,163.52,163.47,8.658]
[1762550736309,7.6095063,163.55,163.48,3.15]
[1762550736310,9.04275927,163.51,163.48,3.15]
[1762550736509,4.56879377,163.5,163.49,5.5073]
[1762550737117,4.56879377,163.5,163.48,3.15]
[1762550737316,0.0400505,163.51,163.48,3.18985343]
[1762550737515,4.5691765,163.5,163.48,3.18985343]
[1762550737711,0.0400505,163.51,163.49,8.6572]
[1762550737916,4.56917563,163.5,163.49,8.6572]
[1762550738410,0.0400505,163.51,163.49,5.5072]
[1762550739008,0.0400505,163.51,163.49,8.6572]
[1762550739214,0.0400505,163.51,163.5,3.15]
[1762550742618,5.69267603,163.59,163.52,2.85]
[1762550742918,4.56538517,163.58,163.55,2.85]
[1762550743112,7.84926958,163.61,163.55,2.85]
[1762550743308,4.43348157,163.6,163.55,2.85]
[1762550743522,4.43348157,163.59,163.55,2.85]
[1762550743709,4.43348157,163.58,163.56,0.04105395]
[1762550743906,0.04144047,163.59,163.56,2.89105395]
[1762550744107,4.43151221,163.58,163.56,2.89105395]
[1762550744318,0.04144047,163.59,163.56,2.89105395]
[1762550744914,0.04144047,163.59,163.56,8.39595395]
[1762550745419,0.04144047,163.59,163.56,2.89105395]
[1762550746515,0.04144047,163.59,163.56,8.39585395]
[1762550747311,0.04144047,163.59,163.56,2.89105395]
[1762550753125,0.04144047,163.59,163.58,2.85]
[1762550754326,4.38085313,163.65,163.61,2.85]
[1762550754524,4.41223446,163.68,163.63,2.85]
[1762550754824,78.3,163.69,163.63,2.85]
[1762550754825,8.79076622,163.67,163.63,2.85]
[1762550755129,4.37853176,163.66,163.63,2.85]
[1762550755322,11.41532478,163.76,163.65,2.85]
[1762550755323,0.04154548,163.67,163.65,2.85]
[1762550755526,0.04253507,163.68,163.65,2.85]
[1762550758324,0.04253507,163.68,163.64,0.04551366]
[1762550758530,4.36809526,163.67,163.64,0.04551366]
[1762550758735,0.04253507,163.68,163.64,0.04551366]
[1762550758926,0.04253507,163.68,163.64,2.89551366]
[1762550762225,2.15659355,163.67,163.64,2.89551366]
[1762550763830,0.04253507,163.68,163.64,2.89551366]
[1762550766233,0.04253507,163.68,163.65,3.08]
[1762550770531,0.04253507,163.68,163.65,2.15659355]
[1762550770736,0.04253507,163.68,163.66,3.08]
[1762550773632,0.04253507,163.68,163.64,3.12551366]
[1762550773839,2.15659355,163.67,163.64,3.12551366]
[1762550774337,0.04253507,163.68,163.64,3.12551366]
[1762550774539,4.41082387,163.67,163.64,3.12551366]
[1762550774739,0.04253507,163.68,163.64,3.12551366]
[1762550775040,4.41094505,163.67,163.64,3.12551366]
[1762550775339,0.04253507,163.68,163.64,3.12551366]
[1762550775539,4.41246672,163.67,163.64,3.12551366]
[1762550775737,0.04253507,163.68,163.64,3.12551366]
[1762550775943,4.41259154,163.67,163.64,3.12551366]
[1762550776131,4.41411721,163.66,163.64,3.12551366]
[1762550776333,0.04253507,163.68,163.64,3.12551366]
[1762550776534,4.41440472,163.67,163.64,3.12551366]
[1762550776843,4.41440472,163.66,163.64,3.12551366]
[1762550777034,0.04253507,163.68,163.64,3.12551366]
[1762550777233,4.41440825,163.67,163.64,3.12551366]
[1762550777442,4.41440825,163.66,163.64,3.12551366]
[1762550777741,0.04253507,163.68,163.64,3.12551366]
[1762550777942,4.41665284,163.67,163.64,3.12551366]
[1762550778139,4.41665284,163.66,163.64,3.12551366]
[1762550778340,0.04253507,163.68,163.64,3.12551366]
[1762550778539,8.83910938,163.67,163.64,3.12551366]
[1762550778747,4.41920856,163.66,163.64,3.12551366]
[1762550779041,2.15659355,163.67,163.64,3.12551366]
[1762550779241,4.41921334,163.66,163.64,3.12551366]
[1762550779443,4.41921334,163.65,163.64,3.12551366]
[1762550780240,4.4250275,163.65,163.64,3.12551366]
[1762550780545,4.4250275,163.65,163.64,5.28210721]
[1762550781444,4.4250275,163.65,163.64,3.12551366]
[1762550782242,8.85554716,163.65,163.64,3.12551366]
[1762550783238,8.85554716,163.65,163.64,0.04551366]
[1762550784137,8.85554716,163.65,163.64,3.12551366]
[1762550785146,8.85554716,163.65,163.64,0.04551366]
[1762550789566,8.85554716,163.65,163.64,3.12551366]
[1762550790843,8.85554716,163.65,163.64,0.04551366]
[1762550792763,5.5023,163.64,163.63,5.05]
[1762550792959,14.35784716,163.64,163.63,0.5758131]
[1762550795167,8.85554716,163.64,163.63,0.5758131]
[1762550797057,8.88122489,163.64,163.63,0.5758131]
[1762550798463,8.88122489,163.64,163.63,1.31e-05]
[1762550798664,14.57390092,163.64,163.63,1.31e-05]
[1762550798870,14.57390092,163.64,163.61,5.39]
[1762550798871,5.5026,163.63,163.61,5.31276601]
[1762550799059,8.88122489,163.62,163.56,2.86]
[1762550799257,8.88122489,163.61,163.56,2.86]
[1762550799462,8.88122489,163.6,163.56,2.86]
[1762550799662,8.88122489,163.59,163.56,2.86]
[1762550799857,8.88122489,163.58,163.56,2.86]
[1762550800068,8.88122489,163.57,163.56,2.90257717]
[1762550800266,8.88122489,163.57,163.56,0.04257717]
[1762550826792,8.88122489,163.57,163.56,3.01257717]
[1762550826993,8.88122489,163.57,163.56,0.04257717]
[1762550829798,10.10122489,163.57,163.56,0.04257717]
[1762550829999,17.71073119,163.57,163.56,0.04257717]
[1762550831198,17.71073119,163.57,163.48,2.97]
[1762550831395,5.69167298,163.54,163.48,2.97]
[1762550831594,14.57289787,163.53,163.48,2.97]
[1762550831795,8.88122489,163.52,163.48,2.97]
[1762550831991,5.69167298,163.54,163.48,2.97]
[1762550831992,8.88122489,163.51,163.48,2.97]
[1762550832193,8.88122489,163.5,163.48,2.97]
[1762550832392,8.88122489,163.49,163.48,3.01351254]
[1762550832596,8.2343961,163.49,163.48,3.01351254]
[1762550832898,0.04282443,163.51,163.48,3.01351254]
[1762550833299,0.04282443,163.51,163.5,2.97]